Workbook

Sheet Calculator
A1: Salary Cap Calculator for Determining Salary Distribution
A3: All cells highlighted in blue requires input from user.
A5: NIH Salary Cap
A6: Annual Salary Cap | D6: Capped Monthly Rate
A7: $212,100 | D7: =A7/12 -> $17,675
A9: Institutional Base Salary
A10: Include all Academic Apppointments in this number, the monthly
A11: IBS salary rate will auto populate
A13: Institutional Base Salary (IBS)
A15: Annual IBS Salary Rate = | D15: $0.00
A17: Monthly IBS Salary Rate = | D17: =D15/12 -> $0.00
E23: NIH Salary Cap Calculator | P23: Use Only if Applicable
A25: Grant Info and % of Salary | E25: Monthly Amount to transfer to NIH grant including OTC (excludes benefits) | G25: Difference between NIH monthly salary cap and IBS monthly salary | I25: Amount of salary applied to NIH grant (2) | J25: Amount Over the Cap (OTC) - to be moved to unrestricted fund | L25: Benefits CBR | N25: Total Benefits Amount (will be moved automatically with OTC amount) | P25: Total Monthly Amount (OTC + Benefits) | R25: GL/EP Assessment (If Applicable) | T25: Total Monthly Amount (OTC + Benefits + GL/EP)
C26: % of Salary (1)
A27: Grant Info (optional)
A29: Example 1 | C29: 0.00000% | E29: =$D$17*C29 -> $0.00 | G29: =$D$17-$D$7 -> -$17,675 | I29: =E29-J29 -> $0.00 | J29: =G29*C29 -> $0.00 | L29: 0.00% | N29: =J29*L29 -> $0.00 | P29: =J29+N29 -> $0.00 | R29: =(0.0081+0.0049)*J29 -> $0.00 | T29: =P29+R29 -> $0.00
A30: TOTALS: | C30: =SUM(C29:D29) -> 0% | E30: =SUM(E29:F29) -> $0.00 | J30: =SUM(J29:K29) -> $0.00 | N30: =SUM(N29:O29) -> $0.00 | P30: =SUM(P29:Q29) -> $0.00 | R30: =SUM(R29:S29) -> $0.00 | T30: =SUM(T29:U29) -> $0.00
B34: If you do not have the % of Salary (1), and only have the "Amount of salary applied to NIH grant" (2) and want to determine the % of Salary (1) do the following:
B35: 1. Divide the 'Amount of salary applied to NIH grant" (2) by the current CAP rate to determine the percentage
B36: 2. Enter that percentage under "% of Salary" (1), the rest will automatically populate

Sheet CAP Historical
A1: Executive Level II
A3: Effective Dates | B3: CAP Amount | C3: Notice #
A4: 1/1/23 - 9/30/23 | B4: $212,100 | C4: NOT-OD-23-056
A5: 1/2/22 - 9/30/22 | B5: $203,700 | C5: NOT-OD-22-076
A6: 10/1/21 - 1/1/22 | B6: $199,300
A7: 1/3/21 - 9/30/21 | B7: $199,300 | C7: NOT-OD-21-057
A8: 10/1/20 - 1/2/21 | B8: $197,300
A9: 1/5/20 - 9/30/20 | B9: $197,300 | C9: NOT-OD-20-065
A10: 10/1/19 - 1/4/20 | B10: $192,300
A11: 1/6/19 - 9/30/19 | B11: $192,300 | C11: NOT-OD-20-067
A12: 10/1/18 - 1/5/19 | B12: $189,600 | C12: NOT-OD-19-099
A13: 1/7/18 - 9/30/18 | B13: $189,600
A14: 10/1/17 - 1/6/18 | B14: $187,000 | C14: NOT-OD-18-137

Sheet % breakdown (hidden)
A1: Salary Cap Calculator for Determining Salary Distribution
A3: All cells highlighted in blue requires input from user.
A5: NIH Salary Cap
A6: Annual Salary Cap | D6: Capped Monthly Rate
A7: $192,300 | D7: =A7/12 -> $16,025
A9: Institutional Base Salary
A10: Include all Academic Apppointments in this number, the monthly
A11: IBS salary rate will auto populate
A13: Institutional Base Salary (IBS)
A15: Annual IBS Salary Rate = | D15: $285,000.00
A17: Monthly IBS Salary Rate = | D17: =D15/9 -> $31,666.67
E23: NIH Salary Cap Calculator
A25: Grant Info and % Effort | E25: Appt % on NIH funds | G25: Appt % on unrestricted funds | I25: Monthly Amount transferred to NIH grant (excludes benefits) | K25: Difference between NIH monthly salary cap and IBS monthly salary | M25: Amount Over the Cap (OTC) - to be moved to unrestricted fund | O25: Benefits CBR | Q25: Total Benefits Amount (will be moved automatically w/OTC amount) | S25: Total Monthly Amount (OTC + Benefits)
A27: Grant Info (optional) | C27: % of Effort
A29: [enter Grant info] | C29: 10% | E29: =($D$7/$D$17)*C29 -> 5.06% | G29: =C29-E29 -> 4.94% | I29: =$D$17*C29 -> $3,166.67 | K29: =$D$17-$D$7 -> $15,641.67 | M29: =K29*C29 -> $1,564.17 | O29: 35.87% | Q29: =M29*O29 -> $561.07 | S29: =M29+Q29 -> $2,125.23
A30: [enter Grant info] | C30: 0% | E30: =($D$7/$D$17)*C30 -> 0.00% | G30: =C30-E30 -> 0.00% | I30: =$D$17*C30 -> $0.00 | K30: =$D$17-$D$7 -> $15,641.67 | M30: =K30*C30 -> $0.00 | O30: 35.87% | Q30: =M30*O30 -> $0.00 | S30: =M30+Q30 -> $0.00
A31: [enter Grant info] | C31: 0% | E31: 0.00% | G31: 0.00% | I31: $0.00 | K31: $15,641.67 | M31: =K31*C31 -> $0.00 | O31: 35.87% | Q31: $0.00 | S31: $0.00
A32: TOTALS: | I32: =SUM(I29:J31) -> $3,166.67 | M32: =SUM(M29:N31) -> $1,564.17 | Q32: =SUM(Q29:R31) -> $561.07 | S32: $2,125.23
